[Event "*** Titled Tuesday Blitz"]
[Site "Chess.com"]
[Date "2020.04.28"]
[Round "5"]
[White "Juanovic"]
[Black "KaterinaMiroshnik"]
[Result "0-1"]
[WhiteElo "2158"]
[BlackElo "2399"]
[TimeControl "180+1"]
[EndTime "10:55:17 PDT"]
[Termination "KaterinaMiroshnik won by resignation"]

1. e4 {[%clk 0:03:00.9]} 1... e6 {[%clk 0:02:59.2]} 2. d4 {[%clk 0:03:00.9]}
2... d5 {[%clk 0:02:59.3]} 3. Nc3 {[%clk 0:03:01.2]} 3... Nf6 {[%clk 0:02:59.3]}
4. Bg5 {[%clk 0:03:00.7]} 4... Bb4 {[%clk 0:02:58]} 5. e5 {[%clk 0:03:01]} 5...
h6 {[%clk 0:02:58.4]} 6. Bd2 {[%clk 0:03:01.3]} 6... Bxc3 {[%clk 0:02:58.9]} 7.
Bxc3 {[%clk 0:03:02.2]} 7... Ne4 {[%clk 0:02:59.4]} 8. Nf3 {[%clk 0:03:02.5]}
8... Nxc3 {[%clk 0:02:57.9]} 9. bxc3 {[%clk 0:03:02.4]} 9... c5 {[%clk
0:02:58.3]} 10. Bd3 {[%clk 0:02:53.9]} 10... Nc6 {[%clk 0:02:56.1]} 11. a4
{[%clk 0:02:53.2]} 11... Qa5 {[%clk 0:02:53.7]} 12. Qd2 {[%clk 0:02:53.2]} 12...
c4 {[%clk 0:02:51.9]} 13. Be2 {[%clk 0:02:53.1]} 13... Bd7 {[%clk 0:02:52.8]}
14. O-O {[%clk 0:02:51.7]} 14... O-O-O {[%clk 0:02:52.8]} 15. Rfb1 {[%clk
0:02:52.1]} 15... f6 {[%clk 0:02:51.3]} 16. Rb5 {[%clk 0:02:51.9]} 16... Qc7
{[%clk 0:02:50.9]} 17. Rab1 {[%clk 0:02:50.8]} 17... fxe5 {[%clk 0:02:48]} 18.
dxe5 {[%clk 0:02:50.3]} 18... b6 {[%clk 0:02:39.4]} 19. R5b2 {[%clk 0:02:43]}
19... Nxe5 {[%clk 0:02:33.9]} 20. a5 {[%clk 0:02:41.3]} 20... b5 {[%clk
0:02:30.3]} 21. Nd4 {[%clk 0:02:41.3]} 21... a6 {[%clk 0:02:28.2]} 22. f4 {[%clk
0:02:29.7]} 22... Nc6 {[%clk 0:02:26.8]} 23. Nxb5 {[%clk 0:02:09.4]} 23... axb5
{[%clk 0:02:23.5]} 24. Rxb5 {[%clk 0:02:10.3]} 24... Rhf8 {[%clk 0:02:16.5]} 25.
a6 {[%clk 0:02:06.2]} 25... Qa7+ {[%clk 0:02:15]} 26. Kh1 {[%clk 0:02:05.7]}
26... Qxa6 {[%clk 0:02:13.3]} 27. Bxc4 {[%clk 0:01:59.7]} 27... dxc4 {[%clk
0:01:59.5]} 28. Qd6 {[%clk 0:01:59.6]} 28... Qa8 {[%clk 0:01:59.1]} 29. Rc5
{[%clk 0:01:50.3]} 29... Rf5 {[%clk 0:01:20.6]} 30. Rxc4 {[%clk 0:01:37.1]}
30... Rb5 {[%clk 0:01:16.3]} 31. Rd1 {[%clk 0:01:28.1]} 31... Qb7 {[%clk
0:01:10.8]} 32. h3 {[%clk 0:01:26.2]} 32... Rb1 {[%clk 0:01:02.7]} 33. Rxb1
{[%clk 0:01:22.1]} 33... Qxb1+ {[%clk 0:01:00]} 34. Kh2 {[%clk 0:01:23]} 34...
Qb8 {[%clk 0:00:53.3]} 35. Qd4 {[%clk 0:01:07.9]} 35... Qc7 {[%clk 0:00:48.8]}
36. Qxg7 {[%clk 0:01:06.2]} 36... h5 {[%clk 0:00:42.6]} 37. Qg5 {[%clk
0:01:02.1]} 37... e5 {[%clk 0:00:40.5]} 38. fxe5 {[%clk 0:01:00]} 38... Re8
{[%clk 0:00:37.4]} 39. Qxh5 {[%clk 0:00:58.8]} 39... Rxe5 {[%clk 0:00:34.1]} 40.
Qf3 {[%clk 0:00:22.3]} 40... Re4+ {[%clk 0:00:32.4]} 0-1

[Event "*** Titled Tuesday Blitz"]
[Site "Chess.com"]
[Date "2020.04.28"]
[Round "5"]
[White "SergioGarciaFuentes"]
[Black "inegrepus"]
[Result "1-0"]
[WhiteElo "2081"]
[BlackElo "2257"]
[TimeControl "180+1"]
[EndTime "10:55:17 PDT"]
[Termination "SergioGarciaFuentes won by resignation"]

1. Nf3 {[%clk 0:03:00.9]} 1... d5 {[%clk 0:02:57.8]} 2. g3 {[%clk 0:03:00.4]}
2... c5 {[%clk 0:02:57.7]} 3. Bg2 {[%clk 0:03:00]} 3... Nc6 {[%clk 0:02:58.2]}
4. d4 {[%clk 0:03:00.6]} 4... cxd4 {[%clk 0:02:57]} 5. Nxd4 {[%clk 0:03:00.8]}
5... Nf6 {[%clk 0:02:55.5]} 6. c4 {[%clk 0:02:57.9]} 6... e6 {[%clk 0:02:55.4]}
7. O-O {[%clk 0:02:55.8]} 7... Bc5 {[%clk 0:02:54.6]} 8. Nb3 {[%clk 0:02:44.3]}
8... Be7 {[%clk 0:02:53.8]} 9. cxd5 {[%clk 0:02:42.2]} 9... Nxd5 {[%clk
0:02:52.8]} 10. Bd2 {[%clk 0:02:31.9]} 10... O-O {[%clk 0:02:51.8]} 11. Nc3
{[%clk 0:02:31.5]} 11... Nf6 {[%clk 0:02:40.4]} 12. Na4 {[%clk 0:02:05]} 12...
Bd7 {[%clk 0:02:37.1]} 13. Nac5 {[%clk 0:01:59.3]} 13... Bxc5 {[%clk 0:02:23.8]}
14. Nxc5 {[%clk 0:01:57.9]} 14... Qb6 {[%clk 0:02:15.1]} 15. Nxd7 {[%clk
0:01:51.3]} 15... Nxd7 {[%clk 0:02:14.3]} 16. Be3 {[%clk 0:01:52]} 16... Qc7
{[%clk 0:02:12.9]} 17. Rc1 {[%clk 0:01:49.7]} 17... Rfd8 {[%clk 0:02:09.1]} 18.
Qc2 {[%clk 0:01:18.7]} 18... Qe5 {[%clk 0:02:08.5]} 19. Qc3 {[%clk 0:01:11.4]}
19... Qxc3 {[%clk 0:01:51.2]} 20. Rxc3 {[%clk 0:01:10.1]} 20... Rac8 {[%clk
0:01:46.2]} 21. Rfc1 {[%clk 0:01:08.6]} 21... Ne7 {[%clk 0:01:46.1]} 22. Rxc8
{[%clk 0:00:57.9]} 22... Rxc8 {[%clk 0:01:47]} 23. Rxc8+ {[%clk 0:00:55.1]}
23... Nxc8 {[%clk 0:01:47.9]} 24. Bxb7 {[%clk 0:00:54.2]} 24... Nd6 {[%clk
0:01:42.5]} 25. Bc6 {[%clk 0:00:51.3]} 25... Ne5 {[%clk 0:01:42.1]} 26. Bg2
{[%clk 0:00:46.2]} 26... Nec4 {[%clk 0:01:36.5]} 27. Bxa7 {[%clk 0:00:44.3]}
27... Nxb2 {[%clk 0:01:36.4]} 28. Bc5 {[%clk 0:00:37.6]} 28... Nb5 {[%clk
0:01:34.3]} 29. Bc6 {[%clk 0:00:33.8]} 29... Nc3 {[%clk 0:01:31]} 30. a3 {[%clk
0:00:33.1]} 30... Nxe2+ {[%clk 0:01:27]} 31. Kf1 {[%clk 0:00:33.6]} 31... Nc1
{[%clk 0:01:24.5]} 32. a4 {[%clk 0:00:31.9]} 32... Ncd3 {[%clk 0:01:20.7]} 33.
Bd6 {[%clk 0:00:20.5]} 33... Nc4 {[%clk 0:01:17.6]} 34. Be7 {[%clk 0:00:16.7]}
34... Nde5 {[%clk 0:01:12.7]} 35. Bb5 {[%clk 0:00:16]} 35... f6 {[%clk
0:01:11.5]} 36. f4 {[%clk 0:00:14.2]} 36... Ng6 {[%clk 0:01:07.7]} 37. Bxc4
{[%clk 0:00:14.1]} 37... Nxe7 {[%clk 0:01:07.7]} 38. Bxe6+ {[%clk 0:00:14.7]}
38... Kf8 {[%clk 0:01:08.1]} 39. a5 {[%clk 0:00:14.9]} 39... Nc6 {[%clk
0:01:07.7]} 40. a6 {[%clk 0:00:13.6]} 40... Ke7 {[%clk 0:01:07.9]} 41. Bc8
{[%clk 0:00:14.1]} 41... Kd8 {[%clk 0:01:06.8]} 42. Bb7 {[%clk 0:00:14.7]} 42...
Na7 {[%clk 0:01:06.9]} 43. Kf2 {[%clk 0:00:14.6]} 43... Kc7 {[%clk 0:01:07.3]}
44. Kf3 {[%clk 0:00:14.9]} 44... Nb5 {[%clk 0:01:05.5]} 45. Ke4 {[%clk
0:00:15.1]} 45... Nd6+ {[%clk 0:01:05.6]} 46. Kd5 {[%clk 0:00:14.6]} 46... Nxb7
{[%clk 0:01:05.1]} 47. a7 {[%clk 0:00:13.2]} 1-0

[Event "*** Titled Tuesday Blitz"]
[Site "Chess.com"]
[Date "2020.04.28"]
[Round "5"]
[White "tteshan"]
[Black "tomsishere"]
[Result "0-1"]
[WhiteElo "2245"]
[BlackElo "2439"]
[TimeControl "180+1"]
[EndTime "10:55:18 PDT"]
[Termination "tomsishere won by resignation"]

1. d4 {[%clk 0:03:00.9]} 1... Nf6 {[%clk 0:02:54.2]} 2. c4 {[%clk 0:03:00.5]}
2... g6 {[%clk 0:02:53.5]} 3. Nc3 {[%clk 0:02:59.8]} 3... d5 {[%clk 0:02:53.5]}
4. cxd5 {[%clk 0:02:57.6]} 4... Nxd5 {[%clk 0:02:54.4]} 5. e4 {[%clk 0:02:57.4]}
5... Nxc3 {[%clk 0:02:54.7]} 6. bxc3 {[%clk 0:02:58.3]} 6... Bg7 {[%clk
0:02:55.3]} 7. Bc4 {[%clk 0:02:54]} 7... c5 {[%clk 0:02:55.1]} 8. Ne2 {[%clk
0:02:53.4]} 8... Nc6 {[%clk 0:02:53.4]} 9. Be3 {[%clk 0:02:53]} 9... O-O {[%clk
0:02:53.1]} 10. O-O {[%clk 0:02:53.3]} 10... Bg4 {[%clk 0:02:52.6]} 11. f3
{[%clk 0:02:52.8]} 11... Bd7 {[%clk 0:02:53.1]} 12. Qd2 {[%clk 0:02:49.8]} 12...
Qa5 {[%clk 0:02:48.6]} 13. Rfd1 {[%clk 0:02:43.2]} 13... Rad8 {[%clk 0:02:43.6]}
14. Rab1 {[%clk 0:02:26.9]} 14... b6 {[%clk 0:02:30]} 15. Bh6 {[%clk 0:01:57.4]}
15... cxd4 {[%clk 0:02:19.2]} 16. Bxg7 {[%clk 0:01:56]} 16... Kxg7 {[%clk
0:02:19.4]} 17. cxd4 {[%clk 0:01:48.8]} 17... Qxd2 {[%clk 0:02:19.2]} 18. Rxd2
{[%clk 0:01:47.8]} 18... Na5 {[%clk 0:02:18.9]} 19. Bd3 {[%clk 0:01:43.1]} 19...
Rc8 {[%clk 0:02:19]} 20. Nf4 {[%clk 0:01:31]} 20... Nc4 {[%clk 0:02:00.1]} 21.
Rdd1 {[%clk 0:01:04.1]} 21... b5 {[%clk 0:01:54.5]} 22. Nd5 {[%clk 0:00:58.5]}
22... e6 {[%clk 0:01:50.6]} 23. Nc3 {[%clk 0:00:50.5]} 23... Na3 {[%clk
0:01:42]} 24. Rbc1 {[%clk 0:00:49.1]} 24... b4 {[%clk 0:01:39]} 25. Ne2 {[%clk
0:00:43.7]} 25... a5 {[%clk 0:01:34.5]} 26. Kf2 {[%clk 0:00:39.7]} 26... Kf6
{[%clk 0:01:27.7]} 27. Ba6 {[%clk 0:00:37.9]} 27... Ra8 {[%clk 0:01:22.7]} 28.
Bb7 {[%clk 0:00:34.6]} 28... Rab8 {[%clk 0:01:21.7]} 29. Rc7 {[%clk 0:00:34.5]}
29... Ba4 {[%clk 0:01:16.8]} 30. Rdc1 {[%clk 0:00:28.2]} 30... Nb5 {[%clk
0:01:16]} 31. Rd7 {[%clk 0:00:26.6]} 31... Nc3 {[%clk 0:01:10]} 32. Rc7 {[%clk
0:00:19.6]} 32... Nb5 {[%clk 0:01:08.6]} 33. Rd7 {[%clk 0:00:19.3]} 33... Nc3
{[%clk 0:01:01.2]} 34. Rc7 {[%clk 0:00:18.5]} 34... Nxa2 {[%clk 0:01:01.2]} 35.
Ra1 {[%clk 0:00:16.3]} 35... b3 {[%clk 0:01:00.8]} 36. e5+ {[%clk 0:00:12.9]}
36... Kg7 {[%clk 0:01:00.2]} 37. Be4 {[%clk 0:00:11]} 37... Bb5 {[%clk
0:00:55.9]} 38. Ra7 {[%clk 0:00:07.6]} 38... a4 {[%clk 0:00:54.8]} 39. Ra5
{[%clk 0:00:07]} 39... Bxe2 {[%clk 0:00:53.5]} 40. Kxe2 {[%clk 0:00:06.5]} 40...
Nc3+ {[%clk 0:00:54.1]} 41. Kd3 {[%clk 0:00:05.8]} 41... b2 {[%clk 0:00:54.5]}
42. Re1 {[%clk 0:00:04.6]} 42... Nxe4 {[%clk 0:00:54.5]} 43. fxe4 {[%clk
0:00:03.9]} 43... b1=Q+ {[%clk 0:00:55.4]} 44. Rxb1 {[%clk 0:00:03.8]} 44...
Rxb1 {[%clk 0:00:56.3]} 45. Ke3 {[%clk 0:00:04.6]} 45... Rfb8 {[%clk 0:00:55.1]}
46. Kf4 {[%clk 0:00:05.5]} 0-1

[Event "*** Titled Tuesday Blitz"]
[Site "Chess.com"]
[Date "2020.04.28"]
[Round "5"]
[White "PIwan"]
[Black "Megagigahiper3345"]
[Result "1-0"]
[WhiteElo "2549"]
[BlackElo "2453"]
[TimeControl "180+1"]
[EndTime "10:55:20 PDT"]
[Termination "PIwan won by resignation"]

1. c4 {[%clk 0:03:00.9]} 1... Nf6 {[%clk 0:02:49]} 2. Nc3 {[%clk 0:03:01.2]}
2... c5 {[%clk 0:02:48.1]} 3. Nf3 {[%clk 0:03:00.5]} 3... e6 {[%clk 0:02:48.5]}
4. e3 {[%clk 0:03:00.6]} 4... d5 {[%clk 0:02:48.6]} 5. d4 {[%clk 0:03:01]} 5...
Nc6 {[%clk 0:02:47.9]} 6. cxd5 {[%clk 0:03:00.7]} 6... exd5 {[%clk 0:02:48.8]}
7. Be2 {[%clk 0:02:57]} 7... cxd4 {[%clk 0:02:48.3]} 8. Nxd4 {[%clk 0:02:49.9]}
8... Bd6 {[%clk 0:02:48.3]} 9. O-O {[%clk 0:02:45.7]} 9... O-O {[%clk
0:02:48.1]} 10. Bf3 {[%clk 0:02:45.6]} 10... Bc7 {[%clk 0:02:25.4]} 11. Ncb5
{[%clk 0:02:42.6]} 11... Bb8 {[%clk 0:02:25.3]} 12. Bd2 {[%clk 0:02:24.4]} 12...
a6 {[%clk 0:02:23.8]} 13. Nxc6 {[%clk 0:02:22.6]} 13... bxc6 {[%clk 0:02:24.7]}
14. Nd4 {[%clk 0:02:19.6]} 14... Qd6 {[%clk 0:02:24.1]} 15. g3 {[%clk
0:02:18.9]} 15... Bh3 {[%clk 0:02:23.4]} 16. Re1 {[%clk 0:02:17.9]} 16... Re8
{[%clk 0:02:15.4]} 17. Rc1 {[%clk 0:02:17.2]} 17... Bd7 {[%clk 0:02:15.8]} 18.
b4 {[%clk 0:01:55.9]} 18... Ne4 {[%clk 0:02:02]} 19. Qc2 {[%clk 0:01:48.5]}
19... Nxd2 {[%clk 0:01:42.4]} 20. Qxd2 {[%clk 0:01:49.4]} 20... a5 {[%clk
0:01:36.5]} 21. a3 {[%clk 0:01:29.8]} 21... axb4 {[%clk 0:01:36.3]} 22. axb4
{[%clk 0:01:30.7]} 22... Ba7 {[%clk 0:01:18.1]} 23. Rc2 {[%clk 0:01:15.3]} 23...
Rab8 {[%clk 0:01:14.4]} 24. Rb2 {[%clk 0:01:04.5]} 24... Qf6 {[%clk 0:01:01.7]}
25. Kg2 {[%clk 0:00:19.2]} 25... Bxd4 {[%clk 0:00:45]} 26. exd4 {[%clk
0:00:20.1]} 26... Bh3+ {[%clk 0:00:22.2]} 27. Kxh3 {[%clk 0:00:16.5]} 27... Qxf3
{[%clk 0:00:22.2]} 28. Re3 {[%clk 0:00:14]} 28... Rxe3 {[%clk 0:00:18.4]} 29.
Qxe3 {[%clk 0:00:14.9]} 29... Qxe3 {[%clk 0:00:19]} 30. fxe3 {[%clk 0:00:15.4]}
30... Re8 {[%clk 0:00:19.7]} 31. b5 {[%clk 0:00:15]} 31... cxb5 {[%clk
0:00:16.7]} 32. Rxb5 {[%clk 0:00:15.9]} 32... Rxe3 {[%clk 0:00:16.6]} 33. Rb8+
{[%clk 0:00:15.9]} 1-0

[Event "*** Titled Tuesday Blitz"]
[Site "Chess.com"]
[Date "2020.04.28"]
[Round "5"]
[White "kuba2006"]
[Black "Playgood28"]
[Result "1-0"]
[WhiteElo "2402"]
[BlackElo "2226"]
[TimeControl "180+1"]
[EndTime "10:55:20 PDT"]
[Termination "kuba2006 won by resignation"]

1. e4 {[%clk 0:03:00.9]} 1... e5 {[%clk 0:02:59]} 2. Nf3 {[%clk 0:03:00.4]} 2...
d6 {[%clk 0:02:58.6]} 3. d4 {[%clk 0:02:59.8]} 3... exd4 {[%clk 0:02:58.9]} 4.
Nxd4 {[%clk 0:03:00.7]} 4... Nf6 {[%clk 0:02:58.4]} 5. Bd3 {[%clk 0:03:00.5]}
5... g6 {[%clk 0:02:56.8]} 6. O-O {[%clk 0:02:59.6]} 6... Bg7 {[%clk 0:02:56.9]}
7. Nc3 {[%clk 0:02:58.7]} 7... O-O {[%clk 0:02:55.8]} 8. Bg5 {[%clk 0:02:57.5]}
8... h6 {[%clk 0:02:55.5]} 9. Bh4 {[%clk 0:02:57.3]} 9... Nc6 {[%clk 0:02:54.9]}
10. Nxc6 {[%clk 0:02:49.1]} 10... bxc6 {[%clk 0:02:54.1]} 11. Ne2 {[%clk
0:02:47.5]} 11... Rb8 {[%clk 0:02:50.2]} 12. Rb1 {[%clk 0:02:47]} 12... Qe8
{[%clk 0:02:44]} 13. Nc3 {[%clk 0:02:40.5]} 13... Ng4 {[%clk 0:02:32.5]} 14. Qd2
{[%clk 0:02:34.9]} 14... Ne5 {[%clk 0:02:16]} 15. f4 {[%clk 0:02:33.4]} 15...
Nxd3 {[%clk 0:02:15]} 16. cxd3 {[%clk 0:02:34]} 16... f5 {[%clk 0:02:04]} 17.
Rbe1 {[%clk 0:02:28]} 17... Qf7 {[%clk 0:01:58]} 18. e5 {[%clk 0:02:25.1]} 18...
dxe5 {[%clk 0:01:56.7]} 19. fxe5 {[%clk 0:02:24.5]} 19... g5 {[%clk 0:01:52.2]}
20. Bg3 {[%clk 0:02:20.6]} 20... f4 {[%clk 0:01:49.1]} 21. d4 {[%clk 0:02:17.2]}
21... Be6 {[%clk 0:01:44]} 22. b3 {[%clk 0:01:58.6]} 22... Qg6 {[%clk
0:01:28.9]} 23. Bf2 {[%clk 0:01:56]} 23... f3 {[%clk 0:01:28.2]} 24. gxf3 {[%clk
0:01:44.2]} 24... Bh3 {[%clk 0:01:26.8]} 25. Bg3 {[%clk 0:01:39.9]} 25... Bxf1
{[%clk 0:01:25.6]} 26. Rxf1 {[%clk 0:01:40.8]} 26... h5 {[%clk 0:01:23.6]} 27.
h3 {[%clk 0:01:18.9]} 27... Rf5 {[%clk 0:01:21.8]} 28. Kg2 {[%clk 0:01:17.2]}
28... Rbf8 {[%clk 0:01:20.7]} 29. Qe3 {[%clk 0:01:03.6]} 29... Rf4 {[%clk
0:01:14.4]} 30. Ne4 {[%clk 0:00:57.9]} 30... R4f5 {[%clk 0:00:52.5]} 31. Nc5
{[%clk 0:00:51.2]} 31... g4 {[%clk 0:00:49.2]} 32. hxg4 {[%clk 0:00:50.4]} 32...
hxg4 {[%clk 0:00:48.4]} 33. f4 {[%clk 0:00:50.9]} 33... Rh5 {[%clk 0:00:48]} 34.
Qe4 {[%clk 0:00:44.6]} 34... Qh6 {[%clk 0:00:37.5]} 35. f5 {[%clk 0:00:40.6]}
35... Rh3 {[%clk 0:00:16.5]} 36. Qxg4 {[%clk 0:00:31.1]} 36... Kh7 {[%clk
0:00:13.7]} 37. Qxh3 {[%clk 0:00:29.6]} 1-0

[Event "*** Titled Tuesday Blitz"]
[Site "Chess.com"]
[Date "2020.04.28"]
[Round "5"]
[White "chessdjw"]
[Black "dpopadic"]
[Result "0-1"]
[WhiteElo "2577"]
[BlackElo "2352"]
[TimeControl "180+1"]
[EndTime "10:55:22 PDT"]
[Termination "dpopadic won on time"]

1. e4 {[%clk 0:03:00.9]} 1... c5 {[%clk 0:02:59.5]} 2. Nf3 {[%clk 0:03:01.4]}
2... Nc6 {[%clk 0:02:59.5]} 3. Bb5 {[%clk 0:03:02]} 3... g5 {[%clk 0:02:58.8]}
4. Nxg5 {[%clk 0:02:55.1]} 4... Nf6 {[%clk 0:02:58.3]} 5. d3 {[%clk 0:02:52.5]}
5... Nd4 {[%clk 0:02:55.2]} 6. Bc4 {[%clk 0:02:50.2]} 6... d5 {[%clk 0:02:55.2]}
7. exd5 {[%clk 0:02:47.2]} 7... b5 {[%clk 0:02:55.1]} 8. Bb3 {[%clk 0:02:23.5]}
8... Rg8 {[%clk 0:02:54.1]} 9. Nc3 {[%clk 0:02:07.6]} 9... h6 {[%clk 0:02:49]}
10. Nge4 {[%clk 0:02:04.5]} 10... Nxe4 {[%clk 0:02:38.5]} 11. Nxe4 {[%clk
0:02:01.7]} 11... Rxg2 {[%clk 0:02:34.2]} 12. h3 {[%clk 0:01:37.9]} 12... Bb7
{[%clk 0:01:49.3]} 13. Be3 {[%clk 0:01:27]} 13... Nxb3 {[%clk 0:01:38.7]} 14.
axb3 {[%clk 0:01:24.9]} 14... Bxd5 {[%clk 0:01:38.3]} 15. Bxc5 {[%clk
0:01:17.9]} 15... Qc7 {[%clk 0:01:28.7]} 16. Qf3 {[%clk 0:01:00.9]} 16... Rg6
{[%clk 0:01:16.8]} 17. b4 {[%clk 0:00:52.4]} 17... Bc6 {[%clk 0:01:04.9]} 18.
Kd1 {[%clk 0:00:39.8]} 18... a6 {[%clk 0:00:50.8]} 19. Re1 {[%clk 0:00:40]}
19... Re6 {[%clk 0:00:31.5]} 20. Qf5 {[%clk 0:00:23.3]} 20... Qb7 {[%clk
0:00:27.2]} 21. f3 {[%clk 0:00:11.1]} 21... Bg7 {[%clk 0:00:23.8]} 22. Qh7
{[%clk 0:00:09]} 22... Bf8 {[%clk 0:00:22.3]} 23. Ra3 {[%clk 0:00:07.9]} 23...
Rg6 {[%clk 0:00:14.3]} 24. Qh8 {[%clk 0:00:05.5]} 24... O-O-O {[%clk 0:00:12.8]}
25. Qe5 {[%clk 0:00:03.4]} 25... Bg7 {[%clk 0:00:11.6]} 26. Qg5 {[%clk
0:00:03.8]} 26... Rxg5 {[%clk 0:00:11]} 0-1

[Event "*** Titled Tuesday Blitz"]
[Site "Chess.com"]
[Date "2020.04.28"]
[Round "5"]
[White "aakankshachess"]
[Black "jucAxx"]
[Result "1-0"]
[WhiteElo "2469"]
[BlackElo "2118"]
[TimeControl "180+1"]
[EndTime "10:55:23 PDT"]
[Termination "aakankshachess won on time"]

1. e4 {[%clk 0:03:00.9]} 1... e6 {[%clk 0:02:59.7]} 2. d4 {[%clk 0:02:59.5]}
2... d5 {[%clk 0:02:59.5]} 3. e5 {[%clk 0:02:57.9]} 3... c5 {[%clk 0:02:59.1]}
4. c3 {[%clk 0:02:58.5]} 4... Nc6 {[%clk 0:02:58.9]} 5. Nf3 {[%clk 0:02:59]}
5... Qb6 {[%clk 0:02:58.6]} 6. a3 {[%clk 0:02:59.4]} 6... Nh6 {[%clk 0:02:56.4]}
7. b4 {[%clk 0:02:59.1]} 7... cxd4 {[%clk 0:02:56]} 8. cxd4 {[%clk 0:02:59.3]}
8... Nf5 {[%clk 0:02:56.6]} 9. Bb2 {[%clk 0:02:58.8]} 9... Be7 {[%clk
0:02:54.5]} 10. Bd3 {[%clk 0:02:56]} 10... O-O {[%clk 0:02:47]} 11. O-O {[%clk
0:02:54.8]} 11... f6 {[%clk 0:02:40.8]} 12. Bxf5 {[%clk 0:02:52]} 12... exf5
{[%clk 0:02:40.9]} 13. Re1 {[%clk 0:02:51.6]} 13... fxe5 {[%clk 0:02:40.5]} 14.
dxe5 {[%clk 0:02:51.3]} 14... Be6 {[%clk 0:02:34.4]} 15. Nc3 {[%clk 0:02:51]}
15... Rad8 {[%clk 0:02:26.7]} 16. Na4 {[%clk 0:02:49.7]} 16... Qc7 {[%clk
0:02:25.3]} 17. Rc1 {[%clk 0:02:49.2]} 17... a6 {[%clk 0:02:14.6]} 18. Nc5
{[%clk 0:02:47.2]} 18... Bxc5 {[%clk 0:02:14]} 19. Rxc5 {[%clk 0:02:46.8]} 19...
Qe7 {[%clk 0:02:12.8]} 20. Qc1 {[%clk 0:02:43.4]} 20... h6 {[%clk 0:02:07.7]}
21. a4 {[%clk 0:02:40.5]} 21... Nxb4 {[%clk 0:01:59.5]} 22. Rc7 {[%clk
0:02:31.9]} 22... Rd7 {[%clk 0:01:59.4]} 23. Rxd7 {[%clk 0:02:29]} 23... Qxd7
{[%clk 0:01:57.6]} 24. Qc5 {[%clk 0:02:28.2]} 24... Nc6 {[%clk 0:01:42.7]} 25.
Ba3 {[%clk 0:02:26.5]} 25... Rc8 {[%clk 0:01:41.8]} 26. g3 {[%clk 0:02:15]}
26... f4 {[%clk 0:01:22.7]} 27. Qd6 {[%clk 0:01:49.2]} 27... fxg3 {[%clk
0:01:19.4]} 28. hxg3 {[%clk 0:01:47.7]} 28... Qf7 {[%clk 0:01:13.4]} 29. Nh4
{[%clk 0:01:41.5]} 29... Rd8 {[%clk 0:00:57]} 30. Qc5 {[%clk 0:01:40.4]} 30...
Qh5 {[%clk 0:00:51.4]} 31. Bb2 {[%clk 0:01:23.4]} 31... d4 {[%clk 0:00:37.5]}
32. Ng2 {[%clk 0:01:22.7]} 32... Rf8 {[%clk 0:00:33.4]} 33. Qd6 {[%clk
0:01:20.1]} 33... Qh3 {[%clk 0:00:28]} 34. Bxd4 {[%clk 0:01:14.1]} 34... Nxd4
{[%clk 0:00:26.5]} 35. Qxd4 {[%clk 0:01:13.9]} 35... Qf5 {[%clk 0:00:24.9]} 36.
Nf4 {[%clk 0:01:12.3]} 36... g5 {[%clk 0:00:14.7]} 37. Nxe6 {[%clk 0:01:06.9]}
37... Qxe6 {[%clk 0:00:15.6]} 38. Qe4 {[%clk 0:01:05.4]} 38... Qf5 {[%clk
0:00:15]} 39. Qe3 {[%clk 0:01:01]} 39... Qc2 {[%clk 0:00:12]} 40. e6 {[%clk
0:01:00.8]} 40... Qxa4 {[%clk 0:00:08.5]} 41. e7 {[%clk 0:01:00.6]} 41... Re8
{[%clk 0:00:09.2]} 42. Qe6+ {[%clk 0:01:00.6]} 42... Kg7 {[%clk 0:00:08.9]} 43.
Qe5+ {[%clk 0:01:00.5]} 43... Kg8 {[%clk 0:00:08]} 44. Qf6 {[%clk 0:00:59.6]}
44... Qc6 {[%clk 0:00:06.6]} 45. Re6 {[%clk 0:00:58]} 1-0